Cogmind - Beta 15 @@@ ROGUE MODE // 2025.06.08 @ 21:48:44 Player: amhumam Result: Destroyed by 7T-7LV(R) with Subdweller Beam Cannon Performance ------------- Evolutions (0) 0 Regions Visited (3) 600 Robots Destroyed (12) 60 Value Destroyed (297) 297 Prototype IDs (11) 220 Alien Tech Used (0) 0 Bonus (0) 0 TOTAL SCORE: 1177 Bonus ------- None Cogmind --------- Core Integrity 0/250 Matter 254/300 Energy 170/265 System Corruption 0% Temperature Hot (210) Movement Core (350) Ox6 Location -10/Subcaves Parts ------- > --- POWER (1) -------- Improved Ion Engine > --- PROPULSION (2) --- (None) > --- UTILITY (2) ------ Small Storage Unit Sensor Array > --- WEAPON (2) ------- Particle Gun EMP Blaster > --- INVENTORY (8) ---- Arachnoskeleton Particle Gun Particle Gun Subdweller Machine Gun Heavy Battle Rifle Maul Peak State ------------ > --- POWER ------------ Improved Ion Engine > --- PROPULSION ------- Light Treads Light Treads > --- UTILITY ---------- Cooling System Small Storage Unit > --- WEAPON ----------- Particle Gun Particle Gun > --- INVENTORY -------- Improved Ion Engine Cooling System Sensor Array Light Assault Rifle EMP Blaster EMP Blaster Mining Laser Maul [Rating: 12] Favorites ----------- Power Improved Ion Engine Engine Improved Ion Engine Propulsion Light Treads Treads Light Treads Utility Small Storage Unit Device Cooling System Storage Small Storage Unit Weapon Particle Gun Energy Gun Particle Gun Ballistic Gun Light Assault Rifle Launcher EMP Blaster Impact Weapon Maul Build | -11 -10 -10 -10 ------- Run | Yrd Mat Min Sub Slots Evolved . | . . . . Power . | . . . . Propulsion . | . . . . Utility . | . . . . Weapon . | . . . . Parts Attached 17 | 6 7 . 4 Power 2 | 1 1 . . Engine 2 | 1 1 . . Core . | . . . . Reactor . | . . . . Propulsion 2 | 2 . . . Treads 2 | 2 . . . Leg . | . . . . Wheel . | . . . . Hover . | . . . . Flight . | . . . . Utility 4 | 1 2 . 1 Device 3 | . 2 . 1 Storage 1 | 1 . . . Processor . | . . . . Hackware . | . . . . Protection . | . . . . Artifact . | . . . . Weapon 9 | 2 4 . 3 Energy Gun 4 | . 3 . 1 Energy Cannon . | . . . . Ballistic Gun 2 | 2 . . . Ballistic Cannon . | . . . . Launcher 2 | . 1 . 1 Special Weapon . | . . . . Impact Weapon 1 | . . . 1 Slashing Weapon . | . . . . Piercing Weapon . | . . . . Special Melee Weapon . | . . . . Unidentified Prototypes . | . . . . Parts Lost 3 | . . 2 1 Power . | . . . . Propulsion 2 | . . 1 1 Utility 1 | . . 1 . Weapon . | . . . . Highest Loss Streak 2 | . . 2 1 To Critical Strikes . | . . . . Average Backups 6 | . 6 8 6 Power . | . 1 1 . Propulsion . | . . . . Utility . | . 1 1 . Weapon 4 | . 4 6 5 Tool/Special . | . . . . Unused Backups 8 | . 2 . 6 Power 2 | . 1 . 1 Propulsion 1 | . . . 1 Utility 1 | . 1 . . Weapon 4 | . . . 4 Tool/Special . | . . . . Average Slot Usage (%) 92 | . 98 100 84 Engine 14 | . 14 14 14 Treads 21 | . 28 28 13 Device 13 | . 12 14 14 Storage 14 | . 14 14 14 Energy Gun 16 | . 10 28 14 Ballistic Gun 4 | . 16 . . Launcher 3 | . 1 . 7 Impact Weapon 2 | . . . 5 Peak Build Rating 12 | 6 12 12 12 Average Rating 10 | 4 9 11 11 On Entrance 6 | . 6 12 9 Naked Turns . | . . . . Heaviest Build 20 | 12 20 20 20 Greatest Support 40 | 40 40 40 20 Greatest Overweight (x) . | . . . . Average Overweight (x) . | . . . . Largest Inventory Capacity 8 | 8 8 8 8 Average Capacity 7 | 7 8 8 8 Most Carried 8 | 2 8 8 8 Average Carried 7 | 1 7 8 7 Final Capacity 8 | 8 8 8 8 Final Carried 8 | 2 8 8 8 Class Distribution -------------------- 100% | Mutant Dominant Class ---------------- Mutant | -10/Materials Mutant | -10/Mines Mutant | -10/Subcaves Resources | -11 -10 -10 -10 ----------- Run | Yrd Mat Min Sub Matter Collected 421 | 213 84 . 124 Remotely . | . . . . Salvage Created 405 | . 405 . . Parts 27 | . 27 . . Haulers Intercepted . | . . . . Recyclers Shooed . | . . . . Parts Field Recycled . | . . . . Retrieved Matter . | . . . . Parts Self-Destructed 6 | . . . 6 Prevented . | . . . . Kills | -11 -10 -10 -10 ------- Run | Yrd Mat Min Sub Combat Hostiles Destroyed 10 | . 10 . . Guns 6 | . 6 . . AOE 4 | . 4 . . Classes Destroyed 4 | . 4 . . Worker 1 | . 1 . . Builder 1 | . 1 . . Swarmer 3 | . 3 . . Grunt 7 | . 7 . . Best Kill Streak 6 | . 6 . . Combat Bots Only 4 | . 4 . . Max Kills in Single Turn 3 | . 3 . . Gunslinging . | . . . . Exploded 3 | . 3 . . Melee . | . . . . Uniques/NPCs Destroyed . | . . . . Combat | -11 -10 -10 -10 -------- Run | Yrd Mat Min Sub Hostile Shots Fired 72 | . 57 9 6 Missed 22 | . 20 1 1 Hits 50 | . 37 8 5 Projectile 50 | . 37 8 5 AOE 9 | . . 9 . Critical Strikes 2 | . 1 . 1 Damage Taken 859 | . 382 337 140 Core 264 | . 96 112 56 Absorbed by Shields . | . . . . Core Remaining (%) 100 | 100 . . . Volleys Fired 32 | . 28 . 4 Largest 2 | . 2 . 2 Hottest 98 | . 70 . 98 Shots Fired 62 | . 56 . 6 Gun 51 | . 47 . 4 Cannon . | . . . . Launcher 11 | . 9 . 2 Special . | . . . . Kinetic 28 | . 28 . . Thermal 23 | . 19 . 4 Explosive . | . . . . Electromagnetic 11 | . 9 . 2 Robot Hit Streak 5 | . 5 . 5 Robot Miss Streak 3 | . 3 . . Penetration Max . | . . . . Secondary Targets 1 | . 1 . . Max Gunslinging Chain 1 | . 1 . . Shots Hit Robots 33 | . 29 . 4 Core Hits 24 | . 24 . . Critical Kills . | . . . . Critical Parts Destroyed . | . . . . Critical Strikes 2 | . 2 . . Burn 2 | . 2 . . Melee Attacks 2 | . . . 2 Impact 2 | . . . 2 Slashing . | . . . . Piercing . | . . . . Sneak Attacks . | . . . . Combat Hostiles . | . . . . Follow-up Attacks . | . . . . Damage Inflicted 753 | . 676 . 77 Guns 310 | . 278 . 32 Cannons . | . . . . Explosions 443 | . 398 . 45 Melee . | . . . . Ramming . | . . . . Kinetic 131 | . 131 . . Thermal 220 | . 188 . 32 Explosive . | . . . . Electromagnetic 402 | . 357 . 45 Impact . | . . . . Slashing . | . . . . Piercing . | . . . . Highest Corruption . | . . . . Average Corruption . | . . . . Corruption Purged . | . . . . Corruption Blocked . | . . . . Overload Shots . | . . . . Overflow Damage . | . . . . Projectiles . | . . . . Explosions . | . . . . Melee . | . . . . Knockbacks . | . . . . Impact . | . . . . Kinetic . | . . . . Secondary . | . . . . Self-Inflicted Damage . | . . . . Shots . | . . . . Rammed . | . . . . Targets Rammed . | . . . . Kicked . | . . . . Crushed . | . . . . Highest Temperature 250 | . 20 . 250 Average Temperature 163 | . 11 . 214 Received Heat Transfer 475 | . 150 . 325 Siege Activations . | . . . . Martial Activations . | . . . . Shielding Activations . | . . . . Robots Disrupted . | . . . . Combat Hostiles . | . . . . Robots Corrupted . | . . . . Combat Hostiles . | . . . . Parts Fried . | . . . . Impact Corruptions . | . . . . Robots Melted . | . . . . Combat Hostiles . | . . . . Parts Melted 1 | . 1 . . Heat Transferred 816 | . 742 . 74 Parts Sabotaged . | . . . . Parts Stolen . | . . . . Parts Stripped . | . . . . Power Chain Reactions 1 | . 1 . . Alert | -11 -10 -10 -10 ------- Run | Yrd Mat Min Sub Maximum Alert Level 1 | . 1 . . Low Security (%) 85 | 100 70 100 . Level 1 14 | . 29 . . Level 2 . | . . . . Level 3 . | . . . . Level 4 . | . . . . Level 5 . | . . . . High Security . | . . . . Max Security . | . . . . Peak Influence 248 | . 248 64 . Initial 64 | . . 64 . Average 81 | . 150 15 . Influence Increases 345 | . 345 . . Destroy 0b10 Robot/C 200 | . 200 . . Destroy 0b10 Robot/NC 10 | . 10 . . Destroy Leader 50 | . 50 . . Successful Hack 7 | . 7 . . Select Force Hacks 60 | . 60 . . Disable Machine 15 | . 15 . . Destroy Structure 3 | . 3 . . Influence Decreases 345 | . 180 165 . Entered New Map 101 | . . 101 . Time Decay 244 | . 180 64 . Squads Dispatched 3 | . 3 . . Investigation 2 | . 2 . . Extermination . | . . . . Reinforcement 1 | . 1 . . Assault . | . . . . Garrison . | . . . . Intercept . | . . . . Searches Triggered . | . . . . Construction Impeded . | . . . . Haulers Reinforced . | . . . . Active Scanning Responses . | . . . . Cargo Convoy Interrupts . | . . . . Stealth | -11 -10 -10 -10 --------- Run | Yrd Mat Min Sub Distress Signals 1 | . 1 . . Communications Jammed . | . . . . Distress Signals . | . . . . Times Spotted 17 | . 12 4 1 Peak Tracking Total 4 | . 4 4 1 Tactical Retreats . | . . . . Traps | -11 -10 -10 -10 ------- Run | Yrd Mat Min Sub Traps Triggered . | . . . . Indirectly . | . . . . Trap Hack Attempts . | . . . . Triggered . | . . . . Disarmed . | . . . . Reprogrammed . | . . . . Reused . | . . . . Traps Extracted . | . . . . Installed . | . . . . Triggered . | . . . . Machines | -11 -10 -10 -10 ---------- Run | Yrd Mat Min Sub Machines Disabled 2 | . 1 . 1 Max in Single Turn 1 | . 1 . 1 Machines Repaired . | . . . . Machines Dismantled . | . . . . Machines Sabotaged . | . . . . Overloaded Fab Kills . | . . . . Hacking | -11 -10 -10 -10 --------- Run | Yrd Mat Min Sub Machines Accessed 5 | . 4 . 1 Terminals 2 | . 2 . . Fabricators . | . . . . Repair Stations . | . . . . Recycling Units 2 | . 2 . . Scanalyzers . | . . . . Garrison Access . | . . . . Total Hacks 10 | . 9 . 1 Successful 4 | . 3 . 1 Failed 6 | . 6 . . Catastrophic . | . . . . Database Lockouts . | . . . . Manual 5 | . 5 . . Terminals 7 | . 7 . . Fabricators . | . . . . Repair Stations . | . . . . Recycling Units 2 | . 2 . . Scanalyzers . | . . . . Garrison Access . | . . . . Terminal Hacks 2 | . 1 . 1 Branch Access Points 1 | . 1 . . Proto ID Catalog 1 | . . . 1 Fabricator Hacks . | . . . . Repair Station Hacks . | . . . . Recycling Unit Hacks . | . . . . Scanalyzer . | . . . . Garrison Access Hacks . | . . . . Unauthorized Hacks 2 | . 2 . . Terminals . | . . . . Fabricators . | . . . . Repair Stations . | . . . . Recycling Units 2 | . 2 . . Tunnel 2 | . 2 . . Scanalyzers . | . . . . Garrison Access . | . . . . Data Cores Recovered . | . . . . Used . | . . . . Hacking Detections 2 | . 2 . . Full Trace Events . | . . . . Feedback Events . | . . . . Feedback Blocked . | . . . . Robot Schematics Acquired . | . . . . Robots Built . | . . . . Authchips . | . . . . Time . | . . . . Total Robot Build Rating . | . . . . Part Schematics Acquired . | . . . . Parts Built . | . . . . Authchips . | . . . . Time . | . . . . Total Part Build Rating . | . . . . Parts Repaired . | . . . . Time . | . . . . Parts Recycled . | . . . . Recycled Matter . | . . . . Retrieved Matter . | . . . . Retrieved Components . | . . . . Parts Scanalyzed . | . . . . Part Schematics Acquired . | . . . . Parts Damaged . | . . . . Bothacking | -11 -10 -10 -10 ------------ Run | Yrd Mat Min Sub Used RIF Installer . | . . . . Robots Hacked . | . . . . Non-combat . | . . . . Combat . | . . . . Robot Hacks Applied . | . . . . Relay Couplers Released . | . . . . Fabnet Peak Effective % . | . . . . Robots Rewired . | . . . . Allies Hacked . | . . . . Hacks Repelled . | . . . . Allies | -11 -10 -10 -10 -------- Run | Yrd Mat Min Sub Total Allies 2 | . . 2 . Largest Group 2 | . . 2 . Highest-Rated Group 47 | . . 47 . Highest-Rated Ally 31 | . . 31 . Total Orders . | . . . . Ally Attacks 9 | . . 9 . Total Damage 105 | . . 105 . Kills 2 | . . 2 . Allies Corrupted . | . . . . Allies Melted . | . . . . Intel | -11 -10 -10 -10 ------- Run | Yrd Mat Min Sub Active Infowar (turns) 579 | . . . 579 Sensors 579 | . . . 579 Robot Analysis Total . | . . . . Derelict Logs Recovered . | . . . . Drone Launches . | . . . . Drone Recoveries . | . . . . Exploration | -11 -10 -10 -10 ------------- Run | Yrd Mat Min Sub Turns Passed 1364 | 77 397 311 579 Spaces Moved 726 | 45 184 195 302 Core 4 | 4 . . . Treads 722 | 41 184 195 302 Legs . | . . . . Wheels . | . . . . Hover . | . . . . Flight . | . . . . Fastest Speed 50 | 50 160 160 160 Average Speed 159 | 150 160 160 160 Slowest Speed 160 | 160 160 160 160 Overloaded Moves . | . . . . Propulsion Burnouts . | . . . . Robots Hopped . | . . . . Potential Cave-ins . | . . . . Cave-ins Triggered . | . . . . Exploration Rate (%) 23 | 3 40 36 13 Regions Visited 3 Branch Regions 2 Pre-discovered Areas 2 | . 2 . . Known Exits Taken 1 | . 1 . . Unknown Exits Taken 2 | 1 . 1 . Scrap Searched 3 | . . . 3 Spaces Dug . | . . . . Terrain Destroyed 3 | . 3 . . Melee . | . . . . Projectile . | . . . . AOE 3 | . 3 . . Terrain Rammed . | . . . . Walls Destroyed . | . . . . Machines Disabled . | . . . . Actions | -11 -10 -10 -10 --------- Run | Yrd Mat Min Sub Total 872 | 52 237 194 389 Wait 68 | . . . 68 Move 723 | 44 183 194 302 Hop . | . . . . Pick Up 15 | 2 10 . 3 Fast Attach 9 | 6 3 . . Attach 1 | . . . 1 Detach . | . . . . Swap 11 | . 6 . 5 Drop 11 | . 7 . 4 Fire 32 | . 28 . 4 Melee 2 | . . . 2 Ram . | . . . . Kick . | . . . . Crush . | . . . . Escape Stasis . | . . . . Rewire . | . . . . Trap . | . . . . Miscellaneous . | . . . . Route ------- -11/Scrapyard -10/Materials (discovered 3 exits: [*Mat] / *Min x2) -10/Mines (discovered 2 exits: [*Mat] / *Sub) -10/Subcaves History --------- Turn | Location | Event 22 | -11/Scrapyard | Discovered new exit (range 16) 78 | -11/Scrapyard | Entered Materials 300 | -10/Materials | Build established: Mutant 300 | -10/Materials | Discovered new exit (range 15) 302 | -10/Materials | Identified exit to Mines 475 | -10/Materials | Entered Mines 510 | -10/Mines | Met a Derelict bent on vengeance 635 | -10/Mines | Discovered new exit (range 10) 701 | -10/Mines | Discovered new exit (range 9) 742 | -10/Mines | Assembled infested the area 747 | -10/Mines | Assisted by a Guerilla fighting off Assembled 777 | -10/Mines | Core integrity fell below 50% 783 | -10/Mines | Core integrity fell below 20% 786 | -10/Mines | Entered Subcaves 943 | -10/Subcaves | Visited 4L-MR0's lab 966 | -10/Subcaves | Found Arachnoskeleton 1365 | -10/Subcaves | Destroyed by 7T-7LV(R) with Subdweller Beam Cannon Last Messages --------------- Cargo Legs Tripod Weapons Platform Flightbrick Gun Armor Tower Shield Power Bank Rainbow Chip VL-GR5's Exoskeleton "Deathgrip" Powered Cannon 00958_ Testing Chamber breached. 00965_ Dropped Imp. Ion Engine. 00965_ Dropped Mining Laser. 00966_ Dropped EMP Blaster. 00966_ Acquired Arachnoskeleton. 00978_ 4L-MR0 mumbles to no one in particular: "Damn Subs sneaking around stealing my stuff." 01005_ Acquired 7 matter. 01010_ Subatomizers dissect the Sub. Laser. 01359_ Lgt. Treads destroyed. 01359_ Critical hit (Meltdown: +280). Map ----- +----------------------------------------------------+ | ?????????????????????????????????????????????????? | | ?????????????????????????????????????????????????? | | ?????????????????????????????????????????????????? | | ?????????????????????????????????????????????????? | | ?????????????????????????????????????????????????? | | ?????????????????????????????????????????????????? | | ?????????????????????????????????????????????????? | | ?????????????????????????????????????????????????? | | ?????????????????????????????????????????????????? | | ?????????????????????????????????????????????????? | | ?????????????????????????????????????????????????? | | ?????????????????????? ?????????????????????????? | | ????????????????# ???? ????????????????????????? | | ???????????????? ??## ????????????????????????? | | ??????????????? ??# ????????????????????????? | | ??????????????" ? ???????????????????????? | | ????????"???? " ? ????????????????????????? | | ???????? ??" ?? #????????????????????????? | | ???????# """" #?? ##???????????????????????? | | ##????# " " R ##?# #???????????????????????? | | #????# " " ### #???????????????????????? | | #????#""" " #????????????????????????? | | #????#"" """ #????????????????????????? | | ####?#" "## #####????????????????????? | | ### """ " ## ##???????????????????? | | """"" " @ #???????????????????? | | #### """ " ## #????????????????? | | #??## " ##? #?????????????? | | ????# ## #??? #????????????? | | ????##### ## ##???# ##????????????? | | ????????# #####"####?????#### #?????????????? | | ????????## ##???#??????????????? #?????????????? | | ?????????####?????????????????????##?????????????? | | ?????????????????????????????????????????????????? | | ?????????????????????????????????????????????????? | | ?????????????????????????????????????????????????? | | ?????????????????????????????????????????????????? | | ?????????????????????????????????????????????????? | | ?????????????????????????????????????????????????? | | ?????????????????????????????????????????????????? | | ?????????????????????????????????????????????????? | | ?????????????????????????????????????????????????? | | ?????????????????????????????????????????????????? | | ?????????????????????????????????????????????????? | | ?????????????????????????????????????????????????? | | ?????????????????????????????????????????????????? | | ?????????????????????????????????????????????????? | | | | | | | +----------------------------------------------------+ Best States ------------- Heat Dissipation 47 Energy Generation 12 Energy Capacity 265 Matter Stores 300 Matter Capacity 300 Sight Range 16 Robot Scan Range 14 Terrain Scan Density 10 Evasion (%) 40 Recoil Reduction 2 Item Schematics ----------------- None Robot Schematics ------------------ None Fabricated ------------ Nothing Repaired ---------- Nothing Alien Tech Used ----------------- None Achievements -------------- None Challenges ------------ None Game ------ Seed MediumSeismicRecalibrator Manual? 0 Play Time 00:12:51 Cumulative 235.0 hours Start 2025.06.08 @ 21:36:49 End 2025.06.08 @ 21:48:44 Sessions 1 Manual Loads 0 Difficulty Rogue Special Mode None Game No. 218 Rogue 218 Adventurer 0 Explorer 0 Win Type - Total 1 Types 1/0/0/0/0/0/0/0/0/0 Lore% 73 Gallery% 61 Achievement% 50 Wizard Run 0 Options --------- Layout 1 ASCII 0 Keyboard 0 Movement Mouse Keybinds 0 Fullscreen 1 Font 24/Smallcaps Map View 50x35 Zoom Use 0% Tactical HUD 1 Map Filters NONE Filters NONE Steam 1 RUN: 9cd671a9-5a79-4fba-b5ae-4640224e7485